Department Family,Entity,Invoice Date,Consolidated Expense Type,Expense area,Supplier,Purchase Invoice Number,"Value including irrecoverable VAT where applicable
�",Description
Department of Health,HSCIC,13/06/2013,Computer Software/License,Capital Expenditure,KEY EQUIPMENT FINANCE LTD,55646," 1,431,724 ",Computer Software/License
Department of Health,HSCIC,27/03/2013,Computer software/hardware,GPES,CSC COMPUTER SCIENCE,5201324660," 1,357,950 ",Computer software/hardware
Department of Health,HSCIC,05/09/2013,Rent,Bus Supp - Est + Fac,MWB BUSINESS EXCHANGE CENTRES LTD,PPVAR05SEP2013," 601,034 ",Rent
Department of Health,HSCIC,11/12/2013,Surveys/Audits/Data,"Surveys, lifestyle and public health",NATIONAL CENTRE FOR SOCIAL RESEARCH,50905," 557,600 ",Surveys/Audits/Data
Department of Health,HSCIC,20/09/2013,Surveys/Audits/Data,"Surveys, lifestyle and public health",NATIONAL CENTRE FOR SOCIAL RESEARCH,50783," 557,000 ",Surveys/Audits/Data
Department of Health,HSCIC,26/03/2013,Legal / Prof Fees,Legal Fees,DLA PIPER UK LLP,57280967," 553,188 ",Legal / Prof Fees
Department of Health,HSCIC,20/06/2013,Surveys/Audits/Data,"Surveys, lifestyle and public health",NATIONAL CENTRE FOR SOCIAL RESEARCH,50627," 550,000 ",Surveys/Audits/Data
Department of Health,HSCIC,22/08/2013,Computer software/hardware,GPES,ATOS IT SERVICES UK LTD,5584138490," 519,701 ",Computer software/hardware
Department of Health,HSCIC,18/03/2014,Surveys/Audits/Data,"Surveys, lifestyle and public health",NATIONAL CENTRE FOR SOCIAL RESEARCH,51114," 515,000 ",Surveys/Audits/Data
Department of Health,HSCIC,02/08/2013,Computer software/hardware,GPES,ATOS IT SERVICES UK LTD,5584137240," 514,013 ",Computer software/hardware
Department of Health,HSCIC,05/07/2013,Computer software/hardware,NW IT Purchases,HM LAND REGISTRY,1119425," 510,000 ",Computer software/hardware
Department of Health,HSCIC,20/11/2013,"Books, Journals & Subscr",Clinical Terminology Service,INTERNATIONAL HEALTH TERMINOLOGY STANDARDS DEVELOPMENT ORGANISATION,2014023," 507,737 ","Books, Journals & Subscr"
Department of Health,HSCIC,08/07/2013,Data Lines,Corporate IT,PROBRAND LTD,OPI436876," 472,912 ",Data Lines
Department of Health,HSCIC,20/12/2013,Surveys/Audits/Data,"Surveys, lifestyle and public health",NATIONAL CENTRE FOR SOCIAL RESEARCH,50943," 464,497 ",Surveys/Audits/Data
Department of Health,HSCIC,31/05/2013,Legal / Prof Fees,Legal Fees,DLA PIPER UK LLP,57284500," 447,372 ",Legal / Prof Fees
Department of Health,HSCIC,26/03/2013,Computer Software/License,Corporate IT,SOFTCAT LTD,INV00760383," 446,818 ",Computer Software/License
Department of Health,HSCIC,28/03/2013,Computer Hardware Purch,Capital Expenditure,PROBRAND LTD,OPI425682," 434,565 ",Computer Hardware Purch
Department of Health,HSCIC,13/06/2013,Computer Software/License,Hosting & Infrastructure,KEY EQUIPMENT FINANCE LTD,55646," 421,108 ",Computer Software/License
Department of Health,HSCIC,25/04/2013,Computer Software/License,Intersystems MSM,INTERSYSTEMS EUROPE,1304002000539," 391,667 ",Computer Software/License
Department of Health,HSCIC,05/12/2013,Surveys/Audits/Data,"Surveys, lifestyle and public health",OFFICE FOR NATIONAL STATISTICS,1027357," 389,672 ",Surveys/Audits/Data
Department of Health,HSCIC,10/03/2014,Surveys/Audits/Data,"Surveys, lifestyle & public health",OFFICE FOR NATIONAL STATISTICS,1028124," 389,672 ",Surveys/Audits/Data
Department of Health,HSCIC,11/06/2013,Surveys/Audits/Data,"Surveys, lifestyle & public health",OFFICE FOR NATIONAL STATISTICS,1026603," 389,672 ",Surveys/Audits/Data
Department of Health,HSCIC,25/09/2013,Surveys/Audits/Data,"Surveys, lifestyle & public health",OFFICE FOR NATIONAL STATISTICS,1027163," 389,672 ",Surveys/Audits/Data
Department of Health,HSCIC,27/06/2013,Legal / Prof Fees,Legal Fees,DLA PIPER UK LLP,SLKJC71754120099UKM510267151," 382,126 ",Legal / Prof Fees
Department of Health,HSCIC,20/12/2013,Rent,Bus Supp - Est + Fac,REGUS (UK) LTD,PP235526/2354211," 371,665 ",Rent
Department of Health,HSCIC,24/05/2013,Computer Software/License,Technical Architecture,GS1 UK,14004707," 360,000 ",Computer Software/License
Department of Health,HSCIC,28/02/2013,Computer Hardware Purch,Capital Expenditure,PROBRAND LTD,OPI421484," 349,685 ",Computer Hardware Purch
Department of Health,HSCIC,30/04/2013,Legal / Prof Fees,Legal Fees,DLA PIPER UK LLP,57284442," 348,891 ",Legal / Prof Fees
Department of Health,HSCIC,29/05/2013,Legal / Prof Fees,Legal Fees,DLA PIPER UK LLP,57284491," 340,514 ",Legal / Prof Fees
Department of Health,HSCIC,13/09/2013,Computer software/hardware,GPES,EGTON MEDICAL INFORMATION SYSTEMS LTD,IN6770611," 319,728 ",Computer software/hardware
Department of Health,HSCIC,30/11/2013,Computer software/hardware,GPES,EGTON MEDICAL INFORMATION SYSTEMS LTD,IN7419112," 319,728 ",Computer software/hardware
Department of Health,HSCIC,31/01/2014,Computer software/hardware,GPES,EGTON MEDICAL INFORMATION SYSTEMS LTD,IN7627211," 319,728 ",Computer software/hardware
Department of Health,HSCIC,14/06/2013,Computer Software/License,GPES,IN PRACTICE SYSTEMS LTD,394439," 297,037 ",Computer Software/License
Department of Health,HSCIC,25/09/2013,Legal / Prof Fees,GPES,ATOS CONSULTING LTD,5584141162," 295,109 ",Legal / Prof Fees
Department of Health,HSCIC,26/03/2013,Legal / Prof Fees,Legal Fees,DLA PIPER UK LLP,57280964," 288,539 ",Legal / Prof Fees
Department of Health,HSCIC,20/06/2013,Surveys/Audits/Data,"Surveys, lifestyle and public health",NATIONAL CENTRE FOR SOCIAL RESEARCH,50626," 260,000 ",Surveys/Audits/Data
Department of Health,HSCIC,27/03/2013,Legal / Prof Fees,Legal Fees,DLA PIPER UK LLP,57280971," 259,513 ",Legal / Prof Fees
Department of Health,HSCIC,28/06/2013,Computer Hardware Purch,Capital Expenditure,PROBRAND LTD,OPI436060," 248,883 ",Computer Hardware Purch
Department of Health,HSCIC,02/12/2013,Rent,Bus Supp - Est + Fac,PETIT PAPILLON MANAGEMENT LTD,9076," 248,688 ",Rent
Department of Health,HSCIC,03/03/2014,Rent,Bus Supp - Est + Fac,PETIT PAPILLON MANAGEMENT LTD,9367," 248,688 ",Rent
Department of Health,HSCIC,02/09/2013,Rent,Bus Supp - Est + Fac,PETIT PAPILLON MANAGEMENT LTD,8957," 248,688 ",Rent
Department of Health,HSCIC,22/03/2013,Consultancy,Finance & Commercial Central Office,KPMG LLP,5500665089," 247,539 ",Consultancy
Department of Health,HSCIC,02/12/2013,Computer Software/License,Solution Assurance,CSC COMPUTER SCIENCE,5201351832," 244,731 ",Computer Software/License
Department of Health,HSCIC,03/06/2013,Rent,Bus Supp - Est + Fac,PETIT PAPILLON MANAGEMENT LTD,8644," 241,643 ",Rent
Department of Health,HSCIC,27/06/2013,Legal / Prof Fees,Legal Fees,DLA PIPER UK LLP,57284506," 238,122 ",Legal / Prof Fees
Department of Health,HSCIC,03/03/2014,Rates,Bus Supp - Est + Fac,LEEDS CITY COUNCIL,9.00815E+20," 237,385 ",Rates
Department of Health,HSCIC,10/10/2013,Computer Software/License,Capital Expenditure,CSA (WAVERLEY ) LTD,IN658302," 229,559 ",Computer Software/License
Department of Health,HSCIC,31/07/2013,Computer Hardware Purch,Capital Expenditure,PROBRAND LTD,OPI440006," 228,451 ",Computer Hardware Purch
Department of Health,HSCIC,31/07/2013,Computer Software/License,Capital Expenditure,CAPITA BUSINESS SERVICES LTD,93104722," 225,331 ",Computer Software/License
Department of Health,HSCIC,09/01/2014,IT Maintenance,Corporate IT,SOFTCAT LTD,INV881351," 221,760 ",IT Maintenance
Department of Health,HSCIC,20/12/2013,Rent,Bus Supp - Est + Fac,MWB BUSINESS EXCHANGE CENTRES LTD,235529," 217,804 ",Rent
Department of Health,HSCIC,24/01/2014,Rent,Bus Supp - Est + Fac,MWB BUSINESS EXCHANGE CENTRES LTD,235532," 217,804 ",Rent
Department of Health,HSCIC,10/07/2013,Rent,Bus Supp - Est + Fac,MWB BUSINESS EXCHANGE CENTRES LTD,235513," 217,804 ",Rent
Department of Health,HSCIC,14/08/2013,Rent,Bus Supp - Est + Fac,MWB BUSINESS EXCHANGE CENTRES LTD,235516," 217,804 ",Rent
Department of Health,HSCIC,23/08/2013,Rent,Bus Supp - Est + Fac,MWB BUSINESS EXCHANGE CENTRES LTD,235518," 217,804 ",Rent
Department of Health,HSCIC,25/09/2013,Rent,Bus Supp - Est + Fac,MWB BUSINESS EXCHANGE CENTRES LTD,235520," 217,804 ",Rent
Department of Health,HSCIC,25/11/2013,Rent,Bus Supp - Est + Fac,MWB BUSINESS EXCHANGE CENTRES LTD,235522," 217,804 ",Rent
Department of Health,HSCIC,01/06/2013,Rent,Bus Supp - Est + Fac,MWB BUSINESS EXCHANGE CENTRES LTD,1076864RI," 217,804 ",Rent
Department of Health,HSCIC,28/03/2013,Computer Software/License,GPES,PHOENIX SOFTWARE LTD,OPI694100," 215,334 ",Computer Software/License
Department of Health,HSCIC,19/12/2013,Computer Software/License,Capital Expenditure,SOFTCAT LTD,INV00875487," 214,330 ",Computer Software/License
Department of Health,HSCIC,30/04/2013,IT Maintenance,Corporate IT,PROBRAND LTD,OPI429035," 213,204 ",IT Maintenance
Department of Health,HSCIC,14/11/2013,IT Additions,Capital Expenditure,COMPUTACENTER UK LTD,3805206416," 212,120 ",IT Additions
Department of Health,HSCIC,23/08/2013,Computer software/hardware,GPES,ATOS IT SERVICES UK LTD,5584138785," 211,290 ",Computer software/hardware
Department of Health,HSCIC,12/03/2014,IT Maintenance,IT Operations,SPECIALIST COMPUTER CENTRES PLC,OPL818947," 206,872 ",IT Maintenance
Department of Health,HSCIC,22/03/2013,Computer Hardware Purch,Capital Expenditure,COMPUTACENTER UK LTD,3350055509," 192,385 ",Computer Hardware Purch
Department of Health,HSCIC,17/02/2014,IT Additions,Capital Expenditure,PROBRAND LTD,OPI462102," 191,994 ",IT Additions
Department of Health,HSCIC,25/03/2014,Rent,Bus Supp - Est + Fac,MWB BUSINESS EXCHANGE CENTRES LTD,2354393," 189,407 ",Rent
Department of Health,HSCIC,24/01/2014,Rent,Bus Supp - Est + Fac,MWB BUSINESS EXCHANGE CENTRES LTD,2354317," 189,197 ",Rent
Department of Health,HSCIC,25/02/2014,Rent,Bus Supp - Est + Fac,MWB BUSINESS EXCHANGE CENTRES LTD,235535," 188,948 ",Rent
Department of Health,HSCIC,25/02/2014,Rent,Bus Supp - Est + Fac,MWB BUSINESS EXCHANGE CENTRES LTD,2354340," 188,207 ",Rent
Department of Health,HSCIC,27/11/2013,Legal / Prof Fees,GPES,ATOS CONSULTING LTD,5584145908," 183,915 ",Legal / Prof Fees
Department of Health,HSCIC,09/12/2013,Computer Software/License,Corporate IT,SOFTCAT LTD,INV00869414," 178,752 ",Computer Software/License
Department of Health,HSCIC,28/02/2013,Legal / Prof Fees,Legal Fees,DLA PIPER UK LLP,57280859," 176,745 ",Legal / Prof Fees
Department of Health,HSCIC,18/03/2014,Legal / Prof Fees,"Surveys, lifestyle & public health",NATIONAL CENTRE FOR SOCIAL RESEARCH,51108," 170,000 ",Legal / Prof Fees
Department of Health,HSCIC,26/11/2013,Rent,Bus Supp - Est + Fac,REGUS (UK) LTD,PP38316972/38316973," 169,712 ",Rent
Department of Health,HSCIC,28/02/2014,Consultancy,Primary care strategy,UNIVERSITY OF NOTTINGHAM,7692074," 167,301 ",Consultancy
Department of Health,HSCIC,12/03/2013,Legal / Prof Fees,Human Resources,NHS BUSINESS SERVICES AUTHORITY,0000006381," 167,140 ",Legal / Prof Fees
Department of Health,HSCIC,22/03/2013,Computer Software/License,Capital Expenditure,SPLUNK,33242," 166,444 ",Computer Software/License
Department of Health,HSCIC,25/11/2013,Rent,Bus Supp - Est + Fac,REGUS (UK) LTD,38317185," 162,947 ",Rent
Department of Health,HSCIC,20/12/2013,Rent,Bus Supp - Est + Fac,REGUS (UK) LTD,38317365," 162,947 ",Rent
Department of Health,HSCIC,27/02/2014,Rent,Bus Supp - Est + Fac,REGUS (UK) LTD,PP38317584," 162,947 ",Rent
Department of Health,HSCIC,25/05/2013,Rent,Bus Supp - Est + Fac,REGUS (UK) LTD,38315892," 161,742 ",Rent
Department of Health,HSCIC,25/02/2013,Rent,Bus Supp - Est + Fac,REGUS (UK) LTD,38315572," 161,536 ",Rent
Department of Health,HSCIC,31/10/2013,Computer Hardware Purch,Capital Expenditure,PROBRAND LTD,OPI449948," 159,894 ",Computer Hardware Purch
Department of Health,HSCIC,10/07/2013,Rent,Bus Supp - Est + Fac,REGUS (UK) LTD,235453," 158,654 ",Rent
Department of Health,HSCIC,23/08/2013,Rent,Bus Supp - Est + Fac,REGUS (UK) LTD,38316506," 156,680 ",Rent
Department of Health,HSCIC,25/09/2013,Rent,Bus Supp - Est + Fac,REGUS (UK) LTD,38316757," 156,680 ",Rent
Department of Health,HSCIC,25/04/2013,Rent,Bus Supp - Est + Fac,REGUS (UK) LTD,38315681," 156,680 ",Rent
Department of Health,HSCIC,24/05/2013,Rent,Bus Supp - Est + Fac,REGUS (UK) LTD,38315986," 156,680 ",Rent
Department of Health,HSCIC,25/06/2013,Rent,Bus Supp - Est + Fac,REGUS (UK) LTD,38316158," 156,680 ",Rent
Department of Health,HSCIC,25/07/2013,Rent,Bus Supp - Est + Fac,REGUS (UK) LTD,38316304," 156,680 ",Rent
Department of Health,HSCIC,25/03/2013,Consultancy,PROMS,VALTECH  LTD,PSI06377," 155,856 ",Consultancy
Department of Health,HSCIC,28/01/2014,Computer Software/License,GPES,MICROTEST LTD,81599," 155,615 ",Computer Software/License
Department of Health,HSCIC,10/07/2013,Rent,Bus Supp - Est + Fac,REGUS (UK) LTD,235449," 155,544 ",Rent
Department of Health,HSCIC,25/10/2013,Rent,Bus Supp - Est + Fac,MWB BUSINESS EXCHANGE CENTRES LTD,2354103," 153,861 ",Rent
Department of Health,HSCIC,25/11/2013,Rent,Bus Supp - Est + Fac,MWB BUSINESS EXCHANGE CENTRES LTD,2354211," 153,861 ",Rent
Department of Health,HSCIC,20/12/2013,Rent,Bus Supp - Est + Fac,MWB BUSINESS EXCHANGE CENTRES LTD,2354256," 153,861 ",Rent
Department of Health,HSCIC,23/08/2013,Rent,Bus Supp - Est + Fac,MWB BUSINESS EXCHANGE CENTRES LTD,235475," 153,861 ",Rent
Department of Health,HSCIC,25/09/2013,Rent,Bus Supp - Est + Fac,MWB BUSINESS EXCHANGE CENTRES LTD,235490," 153,861 ",Rent
Department of Health,HSCIC,01/05/2013,Rent,Bus Supp - Est + Fac,MWB BUSINESS EXCHANGE CENTRES LTD,1068988RI," 153,861 ",Rent
Department of Health,HSCIC,01/06/2013,Rent,Bus Supp - Est + Fac,MWB BUSINESS EXCHANGE CENTRES LTD,1076872RI," 153,861 ",Rent
Department of Health,HSCIC,30/09/2013,Surveys/Audits/Data,"Surveys, lifestyle & public health",MARKET & OPINION RESEARCH INTERNATIONAL LTD,13001834," 153,500 ",Surveys/Audits/Data
Department of Health,HSCIC,25/10/2013,IT Additions,Capital Expenditure,CSA (WAVERLEY ) LTD,IN658337," 153,321 ",IT Additions
Department of Health,HSCIC,14/05/2013,IT Maintenance,CHRIS Service Management,IDENTITY & PASSPORT SERVICE,IPSGR0000073," 151,750 ",IT Maintenance
Department of Health,HSCIC,02/08/2013,Computer Services,Bus Supp - Est + Fac,IDENTITY & PASSPORT SERVICE,IPSGR0000180," 151,750 ",Computer Services
Department of Health,HSCIC,18/12/2013,Computer Services,Bus Supp - Est + Fac,IDENTITY & PASSPORT SERVICE,IPSGR0000325," 151,750 ",Computer Services
Department of Health,HSCIC,13/02/2014,Computer Services,Bus Supp - Est + Fac,IDENTITY & PASSPORT SERVICE,IPSGR0000388," 151,750 ",Computer Services
Department of Health,HSCIC,29/01/2014,Computer software/hardware,GPES,ATOS IT SERVICES UK LTD,5584150518," 150,000 ",Computer software/hardware
Department of Health,HSCIC,30/04/2013,Consultancy,CHRIS Service Management,SOFTWARE AG (UK) LTD,1109003715," 149,999 ",Consultancy
Department of Health,HSCIC,13/02/2014,IT Additions,Capital Expenditure,COMPUTACENTER UK LTD,3880035463," 148,360 ",IT Additions
Department of Health,HSCIC,30/05/2013,Computer Hardware Purch,Capital Expenditure,PROBRAND LTD,OPI446075," 137,976 ",Computer Hardware Purch
Department of Health,HSCIC,30/04/2013,Consultancy,Commercial Finance,KPMG LLP,5500684580," 137,135 ",Consultancy
Department of Health,HSCIC,24/01/2014,Rent,Bus Supp - Est + Fac,REGUS (UK) LTD,38317553," 135,789 ",Rent
Department of Health,HSCIC,30/01/2014,Rent,Bus Supp - Est + Fac,REGUS (UK) LTD,38317584," 135,789 ",Rent
Department of Health,HSCIC,25/02/2014,Rent,Bus Supp - Est + Fac,REGUS (UK) LTD,38317718," 135,789 ",Rent
Department of Health,HSCIC,31/01/2014,IT Additions,Capital Expenditure,PROBRAND LTD,OPI460093," 135,762 ",IT Additions
Department of Health,HSCIC,24/01/2014,Legal / Prof Fees,Legal Fees,ERNST & YOUNG LLP,GB10100060525," 135,562 ",Legal / Prof Fees
Department of Health,HSCIC,13/01/2014,Computer Software/License,Capital Expenditure,SPECIALIST COMPUTER CENTRES PLC,OPL784563," 134,274 ",Computer Software/License
Department of Health,HSCIC,28/02/2014,IT Additions,Capital Expenditure,PROBRAND LTD,OPI463755," 133,365 ",IT Additions
Department of Health,HSCIC,20/11/2013,IT Maintenance,Corporate IT,PROBRAND LTD,OPI452129," 132,983 ",IT Maintenance
Department of Health,HSCIC,20/12/2013,Computer Software/License,NHS Pathways,HEALTH DATA INTELLIGENCE LTD,13," 132,710 ",Computer Software/License
Department of Health,HSCIC,25/10/2013,Rent,Bus Supp - Est + Fac,REGUS (UK) LTD,38316972," 130,567 ",Rent
Department of Health,HSCIC,02/05/2013,Computer software/hardware,GPES,EGTON MEDICAL INFORMATION SYSTEMS LTD,IN6768312," 129,493 ",Computer software/hardware
Department of Health,HSCIC,29/08/2013,Legal / Prof Fees,Legal Fees,MILBANK TWEED HADLEY & MCCLOY LLP,LEO107708," 128,152 ",Legal / Prof Fees
Department of Health,HSCIC,30/04/2013,Legal / Prof Fees,Legal Fees,DLA PIPER UK LLP,57284438," 127,111 ",Legal / Prof Fees
Department of Health,HSCIC,14/03/2014,IT Maintenance,Corporate IT,PROBRAND LTD,OPI1465443," 125,839 ",IT Maintenance
Department of Health,HSCIC,30/09/2013,Legal / Prof Fees,Legal Fees,DLA PIPER UK LLP,57308452," 124,950 ",Legal / Prof Fees
Department of Health,HSCIC,17/02/2014,IT Maintenance,Corporate IT,PROBRAND LTD,OPI462093," 124,147 ",IT Maintenance
Department of Health,HSCIC,31/05/2013,Consultancy,Commercial Finance,KPMG LLP,5500697478," 122,714 ",Consultancy
Department of Health,HSCIC,20/06/2013,Computer Software/License,Corporate IT,MICROSOFT LTD,9620712700," 122,358 ",Computer Software/License
Department of Health,HSCIC,14/01/2014,IT Maintenance,Corporate IT,PROBRAND LTD,OPI457536," 121,872 ",IT Maintenance
Department of Health,HSCIC,17/12/2013,IT Maintenance,Corporate IT,PROBRAND LTD,OPI455490," 121,699 ",IT Maintenance
Department of Health,HSCIC,31/01/2014,Consultancy,Information Assurance Special Projects,PRICEWATERHOUSECOOPERS LLP,1354125968," 121,287 ",Consultancy
Department of Health,HSCIC,30/04/2013,Computer Hardware Purch,Capital Expenditure,PROBRAND LTD,OPI429024," 120,069 ",Computer Hardware Purch
Department of Health,HSCIC,22/04/2013,Computer Hardware Purch,Capital Expenditure,CSA (WAVERLEY ) LTD,IN657662," 120,000 ",Computer Hardware Purch
Department of Health,HSCIC,31/07/2013,Computer Software/License,Capital Expenditure,CAPITA BUSINESS SERVICES LTD,93104722," 119,268 ",Computer Software/License
Department of Health,HSCIC,21/11/2013,IT Additions,Capital Expenditure,COMPUTACENTER UK LTD,3805228749," 118,036 ",IT Additions
Department of Health,HSCIC,14/05/2013,Computer Hardware Purch,Capital Expenditure,PROBRAND LTD,OPI430474," 115,662 ",Computer Hardware Purch
Department of Health,HSCIC,16/09/2013,IT Maintenance,Corporate IT,PROBRAND LTD,OPI444318," 115,096 ",IT Maintenance
Department of Health,HSCIC,09/10/2013,IT Maintenance,Corporate IT,PROBRAND LTD,OPI447236," 114,803 ",IT Maintenance
Department of Health,HSCIC,16/08/2013,IT Maintenance,Corporate IT,PROBRAND LTD,OPI441531," 114,425 ",IT Maintenance
Department of Health,HSCIC,09/10/2013,IT Maintenance,Corporate IT,PROBRAND LTD,OPI447235," 114,338 ",IT Maintenance
Department of Health,HSCIC,26/03/2013,Computer Software/License,Capital Expenditure,SOFTCAT LTD,INV00760383," 113,222 ",Computer Software/License
Department of Health,HSCIC,31/05/2013,IT Maintenance,Corporate IT,PROBRAND LTD,OPI432645," 112,736 ",IT Maintenance
Department of Health,HSCIC,16/07/2013,IT Maintenance,Corporate IT,PROBRAND LTD,OPI438103," 112,558 ",IT Maintenance
Department of Health,HSCIC,14/05/2013,IT Maintenance,Corporate IT,PROBRAND LTD,OPI430475," 111,153 ",IT Maintenance
Department of Health,HSCIC,19/06/2013,Computer Hardware Purch,Capital Expenditure,PROBRAND LTD,OPI434717," 110,474 ",Computer Hardware Purch
Department of Health,HSCIC,07/02/2014,Rent,Bus Supp - Est + Fac,DEPARTMENT OF HEALTH,210530," 109,777 ",Rent
Department of Health,HSCIC,26/03/2013,Consultancy,Finance & Commercial Central Office,DELOITTE LLP,1110912207," 109,424 ",Consultancy
Department of Health,HSCIC,18/03/2014,Rent,Bus Supp - Est + Fac,DEPARTMENT OF HEALTH,210699," 109,146 ",Rent
Department of Health,HSCIC,27/02/2014,Rent,Bus Supp - Est + Fac,DEPARTMENT OF HEALTH,210525," 108,795 ",Rent
Department of Health,HSCIC,25/02/2013,Legal / Prof Fees,Business Services Management,DELOITTE LLP,1110900456," 108,062 ",Legal / Prof Fees
Department of Health,HSCIC,19/06/2013,IT Maintenance,Corporate IT,PROBRAND LTD,OPI434713," 106,576 ",IT Maintenance
Department of Health,HSCIC,23/04/2013,IT Maintenance,Corporate IT,PROBRAND LTD,OPI428049," 106,338 ",IT Maintenance
Department of Health,HSCIC,26/03/2013,Computer Hardware Purch,Capital Expenditure,SPECIALIST COMPUTER CENTRES PLC,OPL635319," 104,665 ",Computer Hardware Purch
Department of Health,HSCIC,25/06/2013,Computer Hardware Purch,Capital Expenditure,CSA (WAVERLEY ) LTD,IN657881," 102,095 ",Computer Hardware Purch
Department of Health,HSCIC,30/04/2013,IT Maintenance,Corporate IT,PROBRAND LTD,OPI429023," 101,105 ",IT Maintenance
Department of Health,HSCIC,20/06/2013,Computer Hardware Purch,Capital Expenditure,COMPUTACENTER UK LTD,3804795310," 100,106 ",Computer Hardware Purch
Department of Health,HSCIC,25/10/2013,Computer software/hardware,GPES,ATOS IT SERVICES UK LTD,5584143459," 100,000 ",Computer software/hardware
Department of Health,HSCIC,20/11/2013,Legal / Prof Fees,"Surveys, lifestyle & public health",NATIONAL CENTRE FOR SOCIAL RESEARCH,50864," 100,000 ",Legal / Prof Fees
Department of Health,HSCIC,15/05/2013,Surveys/Audits/Data,"Surveys, lifestyle and public health",NATIONAL CENTRE FOR SOCIAL RESEARCH,50556," 100,000 ",Surveys/Audits/Data
Department of Health,HSCIC,14/10/2013,Surveys/Audits/Data,IT Supply + Contract Mgt,OFFICE FOR NATIONAL STATISTICS,1027229," 100,000 ",Surveys/Audits/Data
Department of Health,HSCIC,24/02/2014,Training Expenses,Solution Assurance,QA LTD,ISL119745," 100,000 ",Training Expenses
Department of Health,HSCIC,18/07/2013,IT Maintenance,Corporate IT,PROBRAND LTD,OPI438460," 98,194 ",IT Maintenance
Department of Health,HSCIC,30/08/2013,Computer Hardware Purch,Capital Expenditure,PROBRAND LTD,OPI442619," 97,210 ",Computer Hardware Purch
Department of Health,HSCIC,15/03/2013,Computer Software/License,CHRIS Service Management,SOFTWARE AG (UK) LTD,1109003496," 95,694 ",Computer Software/License
Department of Health,HSCIC,30/09/2013,Computer Software/License,GPES,MICROTEST LTD,0000081109," 94,860 ",Computer Software/License
Department of Health,HSCIC,22/03/2013,Computer Hardware Purch,Capital Expenditure,SPECIALIST COMPUTER CENTRES PLC,OPL633634," 94,099 ",Computer Hardware Purch
Department of Health,HSCIC,02/04/2013,Computer Software/License,NHS Choices,SPECIALIST COMPUTER CENTRES PLC,OPL639373," 94,067 ",Computer Software/License
Department of Health,HSCIC,30/10/2013,Legal / Prof Fees,Legal Fees,DLA PIPER UK LLP,57303820," 92,758 ",Legal / Prof Fees
Department of Health,HSCIC,29/04/2013,IT Maintenance,IC Projects,NORTHGATE INFORMATION SOLUTIONS UK LTD,PP91257059," 91,282 ",IT Maintenance
Department of Health,HSCIC,16/08/2013,IT Maintenance,Corporate IT,PROBRAND LTD,OPI441532," 91,117 ",IT Maintenance
Department of Health,HSCIC,20/11/2013,IT Maintenance,Corporate IT,PROBRAND LTD,OPI452130," 90,921 ",IT Maintenance
Department of Health,HSCIC,21/06/2013,Computer Hardware Purch,Capital Expenditure,COMPUTACENTER UK LTD,3804795311," 90,503 ",Computer Hardware Purch
Department of Health,HSCIC,03/03/2014,Rates,Bus Supp - Est + Fac,LEEDS CITY COUNCIL,9.00977E+19," 88,206 ",Rates
Department of Health,HSCIC,30/10/2013,Legal / Prof Fees,Legal Fees,DLA PIPER UK LLP,57303976," 88,130 ",Legal / Prof Fees
Department of Health,HSCIC,15/09/2013,Consultancy,Commercial Management,DELOITTE LLP,1110971892," 87,379 ",Consultancy
Department of Health,HSCIC,30/04/2013,Legal / Prof Fees,NHS Choices,CAPITA BUSINESS SERVICES LTD,92963066," 87,195 ",Legal / Prof Fees
Department of Health,HSCIC,27/02/2014,IT Additions,Capital Expenditure,COMPUTACENTER UK LTD,3880051859," 86,667 ",IT Additions
Department of Health,HSCIC,20/11/2013,Consultancy,Commercial Management,DELOITTE LLP,1110992347," 86,650 ",Consultancy
Department of Health,HSCIC,24/07/2013,Rent,Bus Supp - Est + Fac,DEPARTMENT OF HEALTH,209662," 86,567 ",Rent
Department of Health,HSCIC,13/02/2014,IT Maintenance,Corporate IT,SPECIALIST COMPUTER CENTRES PLC,OPL803158," 86,396 ",IT Maintenance
Department of Health,HSCIC,27/03/2013,Consultancy,Clinical office,ROYAL COLLEGE OF PHYSICIANS,INV011133," 86,000 ",Consultancy
Department of Health,HSCIC,02/08/2013,Computer software/hardware,GPES,ATOS IT SERVICES UK LTD,5584137239," 85,609 ",Computer software/hardware
Department of Health,HSCIC,15/07/2013,Legal / Prof Fees,Legal Fees,DLA PIPER UK LLP,57302314," 85,124 ",Legal / Prof Fees
Department of Health,HSCIC,23/10/2013,Audit Services,Finance & Commercial Central Office,PRICEWATERHOUSECOOPERS LLP,1354086150," 83,933 ",Audit Services
Department of Health,HSCIC,28/02/2013,Legal / Prof Fees,Legal Fees,DLA PIPER UK LLP,57281072," 83,700 ",Legal / Prof Fees
Department of Health,HSCIC,29/04/2013,Legal / Prof Fees,Legal Fees,DLA PIPER UK LLP,57284443," 83,445 ",Legal / Prof Fees
Department of Health,HSCIC,22/03/2013,Computer Software/License,Capital Expenditure,COMPUTACENTER UK LTD,3350055509," 83,003 ",Computer Software/License
Department of Health,HSCIC,17/12/2013,IT Maintenance,Corporate IT,PROBRAND LTD,OPI455488," 82,487 ",IT Maintenance
Department of Health,HSCIC,31/07/2013,Consultancy,Commercial Management,DELOITTE LLP,1110956608," 81,830 ",Consultancy
Department of Health,HSCIC,28/03/2013,Professional services,PROMS,MOUCHEL MANAGEMENT CONSULTING LTD,90130703," 81,360 ",Professional services
Department of Health,HSCIC,29/08/2013,Legal / Prof Fees,Legal Fees,DLA PIPER UK LLP,57307843," 81,165 ",Legal / Prof Fees
Department of Health,HSCIC,03/03/2014,Rates,Bus Supp - Est + Fac,LEEDS CITY COUNCIL,9.00908E+19," 80,976 ",Rates
Department of Health,HSCIC,12/11/2013,Data Lines,Corporate IT,PROBRAND LTD,OPI451111," 80,899 ",Data Lines
Department of Health,HSCIC,20/12/2013,Computer Software/License,Capital Expenditure,HEALTH DATA INTELLIGENCE LTD,13," 80,300 ",Computer Software/License
Department of Health,HSCIC,03/05/2013,Computer Software/License,Corporate IT,HEWLETT- PACKARD LTD,6776021DRCORR," 80,072 ",Computer Software/License
Department of Health,HSCIC,26/03/2013,Other Gen Supplies & Srv,IT Supply + Contract Mgt,DLA PIPER UK LLP,57280963," 79,699 ",Other Gen Supplies & Srv
Department of Health,HSCIC,02/12/2013,Rent,Bus Supp - Est + Fac,PETIT PAPILLON MANAGEMENT LTD,9078," 79,032 ",Rent
Department of Health,HSCIC,03/03/2014,Rent,Bus Supp - Est + Fac,PETIT PAPILLON MANAGEMENT LTD,9369," 79,032 ",Rent
Department of Health,HSCIC,02/09/2013,Rent,Bus Supp - Est + Fac,PETIT PAPILLON MANAGEMENT LTD,8959," 79,032 ",Rent
Department of Health,HSCIC,28/03/2013,Legal / Prof Fees,Legal Fees,DLA PIPER UK LLP,57283436," 78,942 ",Legal / Prof Fees
Department of Health,HSCIC,31/03/2013,Computer Software/License,Capital Expenditure,BJSS LTD,10025," 78,917 ",Computer Software/License
Department of Health,HSCIC,30/04/2013,Legal / Prof Fees,IC Projects,BJSS LTD,10150," 78,068 ",Legal / Prof Fees
Department of Health,HSCIC,31/03/2013,Legal / Prof Fees,Projects,AMTEC CONSULTING PLC,21716," 78,060 ",Legal / Prof Fees
Department of Health,HSCIC,01/10/2013,Data Lines,Corporate IT,VODAFONE CORPORATE LTD,UK101020139957," 77,744 ",Data Lines
Department of Health,HSCIC,06/08/2013,Consultancy,Primary care strategy,UNIVERSITY OF NOTTINGHAM,7684682," 77,390 ",Consultancy
Department of Health,HSCIC,29/01/2014,Legal / Prof Fees,Legal Fees,DLA PIPER UK LLP,57311239," 77,221 ",Legal / Prof Fees
Department of Health,HSCIC,03/06/2013,Rent,Bus Supp - Est + Fac,PETIT PAPILLON MANAGEMENT LTD,OMI0304," 76,773 ",Rent
Department of Health,HSCIC,31/03/2013,Consultancy,PROMS,VALTECH  LTD,PSI064I1," 76,704 ",Consultancy
Department of Health,HSCIC,28/02/2014,IT Additions,Capital Expenditure,COMPUTACENTER UK LTD,3880053723," 76,273 ",IT Additions
Department of Health,HSCIC,29/01/2014,Legal / Prof Fees,Legal Fees,DLA PIPER UK LLP,SLKJC71754120099UKM555531561," 76,198 ",Legal / Prof Fees
Department of Health,HSCIC,24/01/2014,Rent,Bus Supp - Est + Fac,REGUS (UK) LTD,2354268," 75,303 ",Rent
Department of Health,HSCIC,20/11/2013,Computer Hardware Purch,Capital Expenditure,PROBRAND LTD,OPI452132," 75,278 ",Computer Hardware Purch
Department of Health,HSCIC,30/06/2013,Consultancy,Commercial Finance,KPMG LLP,5500712747," 75,147 ",Consultancy
Department of Health,HSCIC,16/01/2014,Surveys/Audits/Data,"Surveys, lifestyle and public health",NATIONAL CENTRE FOR SOCIAL RESEARCH,50988," 75,000 ",Surveys/Audits/Data
Department of Health,HSCIC,03/04/2013,Consultancy,Interoperability,SOUTH LONDON AND MAUDSLEY NHS FOUNDATION TRUST,M0076665," 75,000 ",Consultancy
Department of Health,HSCIC,02/12/2013,Rent,Bus Supp - Est + Fac,PETIT PAPILLON MANAGEMENT LTD,9075," 74,857 ",Rent
Department of Health,HSCIC,03/03/2014,Rent,Bus Supp - Est + Fac,PETIT PAPILLON MANAGEMENT LTD,9366," 74,857 ",Rent
Department of Health,HSCIC,02/09/2013,Rent,Bus Supp - Est + Fac,PETIT PAPILLON MANAGEMENT LTD,8956," 74,857 ",Rent
Department of Health,HSCIC,27/03/2013,Consultancy,Interoperability,WHITTINGTON HOSPITAL NHS TRUST,00040301," 74,650 ",Consultancy
Department of Health,HSCIC,27/03/2013,Consultancy,Interoperability,HEART OF ENGLAND NHS FOUNDATION TRUST,896721," 73,000 ",Consultancy
Department of Health,HSCIC,28/03/2013,Legal / Prof Fees,Legal Fees,DLA PIPER UK LLP,57283437," 72,746 ",Legal / Prof Fees
Department of Health,HSCIC,03/06/2013,Rent,Bus Supp - Est + Fac,PETIT PAPILLON MANAGEMENT LTD,8643," 72,733 ",Rent
Department of Health,HSCIC,24/12/2013,Legal / Prof Fees,Legal Fees,DLA PIPER UK LLP,57304941," 72,325 ",Legal / Prof Fees
Department of Health,HSCIC,30/09/2013,Computer Software/License,Capital Expenditure,SOFTCAT LTD,INV00837213," 72,165 ",Computer Software/License
Department of Health,HSCIC,28/02/2014,IT Additions,Capital Expenditure,CSA (WAVERLEY ) LTD,IN658841," 71,953 ",IT Additions
Department of Health,HSCIC,31/01/2014,Computer Software/License,Technical Architecture,USERZOOM LTD,20141504," 71,340 ",Computer Software/License
Department of Health,HSCIC,06/08/2013,Legal / Prof Fees,Legal Fees,DLA PIPER UK LLP,57307136," 71,213 ",Legal / Prof Fees
Department of Health,HSCIC,14/01/2014,IT Maintenance,Corporate IT,PROBRAND LTD,OPI457537," 71,090 ",IT Maintenance
Department of Health,HSCIC,16/04/2013,Computer Software/License,Private Office,ROYAL COLLEGE OF GENERAL PRACTITIONERS,INVOTH000321," 71,000 ",Computer Software/License
Department of Health,HSCIC,28/01/2014,Computer Software/License,Capital Expenditure,SOFTCAT LTD,INV00891264," 70,632 ",Computer Software/License
Department of Health,HSCIC,30/05/2013,Legal / Prof Fees,Legal Fees,DLA PIPER UK LLP,MRAVCAY71754UKM504381931," 70,221 ",Legal / Prof Fees
Department of Health,HSCIC,22/04/2013,Computer Hardware Purch,Capital Expenditure,CSA (WAVERLEY ) LTD,IN657662," 69,963 ",Computer Hardware Purch
Department of Health,HSCIC,02/05/2013,Computer software/hardware,GPES,EGTON MEDICAL INFORMATION SYSTEMS LTD,2IN676811," 69,895 ",Computer software/hardware
Department of Health,HSCIC,08/04/2013,Legal / Prof Fees,IC Projects,ATOS IT SERVICES UK LTD,5584129193," 69,302 ",Legal / Prof Fees
Department of Health,HSCIC,30/09/2013,Consultancy,Commercial Finance,KPMG LLP,5500754355," 69,288 ",Consultancy
Department of Health,HSCIC,20/02/2014,IT Additions,Capital Expenditure,CSA (WAVERLEY ) LTD,IN658810," 68,888 ",IT Additions
Department of Health,HSCIC,26/07/2013,Legal / Prof Fees,Legal Fees,DLA PIPER UK LLP,57307105," 68,709 ",Legal / Prof Fees
Department of Health,HSCIC,16/04/2013,Rent,Bus Supp - Est + Fac,KNIGHT FRANK LLP,107896," 68,444 ",Rent
Department of Health,HSCIC,29/07/2013,Legal / Prof Fees,Legal Fees,DLA PIPER UK LLP,57307034," 67,494 ",Legal / Prof Fees
Department of Health,HSCIC,10/09/2013,IT Maintenance,Corporate IT,PROBRAND LTD,OPI443656," 67,174 ",IT Maintenance
Department of Health,HSCIC,28/11/2013,Legal / Prof Fees,Legal Fees,DLA PIPER UK LLP,57304437," 67,069 ",Legal / Prof Fees
Department of Health,HSCIC,31/10/2013,Legal / Prof Fees,Data Services for Commissioners,PRICEWATERHOUSECOOPERS LLP,1354075497," 66,442 ",Legal / Prof Fees
Department of Health,HSCIC,02/05/2013,Computer software/hardware,GPES,EGTON MEDICAL INFORMATION SYSTEMS LTD,IN6768611," 66,006 ",Computer software/hardware
Department of Health,HSCIC,12/03/2013,Consultancy,Interoperability,CENTRAL MANCHESTER UNIVERSITY HOSPITALS NHS FOUNDATION TRUST,202293," 65,500 ",Consultancy
Department of Health,HSCIC,04/02/2014,Computer Software/License,Clinical Classifications Service,SPECIALIST COMPUTER CENTRES PLC,OPL797779," 65,411 ",Computer Software/License
Department of Health,HSCIC,21/11/2013,Subscriptions,Clinical office,MOORFIELDS EYE HOSPITAL NHS FOUNDATION TRUST,IS0010337," 63,500 ",Subscriptions
Department of Health,HSCIC,23/12/2013,IT Additions,Capital Expenditure,PROBRAND LTD,OPI456140DRCORR," 63,423 ",IT Additions
Department of Health,HSCIC,28/02/2014,Computer Software/License,GPES,MICROTEST LTD,82563," 63,004 ",Computer Software/License
Department of Health,HSCIC,30/04/2013,Legal / Prof Fees,Legal Fees,DLA PIPER UK LLP,57284187," 62,344 ",Legal / Prof Fees
Department of Health,HSCIC,30/04/2013,Computer Hardware Purch,Capital Expenditure,PROBRAND LTD,OPI429031," 62,310 ",Computer Hardware Purch
Department of Health,HSCIC,29/03/2013,Computer Software/License,Corporate IT,COMPUTACENTER UK LTD,3804609075," 62,246 ",Computer Software/License
Department of Health,HSCIC,24/01/2014,Computer Software/License,Capital Expenditure,SOFTCAT LTD,INV00889376," 62,134 ",Computer Software/License
Department of Health,HSCIC,20/03/2014,Other Agency Staff,ISB,GUYS & ST THOMAS HOSPITAL NHS FOUNDATION TRUST,3136991," 61,782 ",Other Agency Staff
Department of Health,HSCIC,31/03/2013,Consultancy,PROMS,VALTECH  LTD,PSI064I3," 61,560 ",Consultancy
Department of Health,HSCIC,31/03/2013,Consultancy,PROMS,VALTECH  LTD,PSI064I4," 61,560 ",Consultancy
Department of Health,HSCIC,28/08/2013,Legal / Prof Fees,Legal Fees,DLA PIPER UK LLP,57307815," 61,012 ",Legal / Prof Fees
Department of Health,HSCIC,20/11/2013,Legal / Prof Fees,"Surveys, lifestyle & public health",NATIONAL CENTRE FOR SOCIAL RESEARCH,50857," 60,000 ",Legal / Prof Fees
Department of Health,HSCIC,17/06/2013,Surveys/Audits/Data,"Surveys, lifestyle & public health",NATIONAL CENTRE FOR SOCIAL RESEARCH,50593," 60,000 ",Surveys/Audits/Data
Department of Health,HSCIC,26/03/2013,Consultancy,Interoperability,ROBERT JONES & AGNES HUNT ORTHOPAEDIC & DISTRICT HOSPITAL NHS TRUST,20057497," 60,000 ",Consultancy
Department of Health,HSCIC,31/03/2013,Consultancy,Finance & Commercial Central Office,KPMG LLP,5500674514," 59,694 ",Consultancy
Department of Health,HSCIC,11/12/2013,External Data Contracts,HSCDS (NHS Choices Managed Services),CAPITA BUSINESS SERVICES LTD,93326019," 59,475 ",External Data Contracts
Department of Health,HSCIC,05/07/2013,Rent,Bus Supp - Est + Fac,DEPARTMENT OF HEALTH,209666," 59,340 ",Rent
Department of Health,HSCIC,05/09/2013,Computer Software/License,Capital Expenditure,NTT DATA UK CONSULTING & IT SERVICE LTD,4000698," 59,113 ",Computer Software/License
Department of Health,HSCIC,26/07/2013,Legal / Prof Fees,Legal Fees,DLA PIPER UK LLP,57307103," 58,404 ",Legal / Prof Fees
Department of Health,HSCIC,28/03/2013,Legal / Prof Fees,NHS Choices,CAPITA BUSINESS SERVICES LTD,92918582," 57,895 ",Legal / Prof Fees
Department of Health,HSCIC,28/10/2013,Computer Software/License,Hosting & Infrastructure,INSIGHT DIRECT (UK) LTD,1557796," 57,438 ",Computer Software/License
Department of Health,HSCIC,10/03/2014,Rates,Bus Supp - Est + Fac,REDDITCH BOROUGH COUNCIL,3.00009E+20," 56,876 ",Rates
Department of Health,HSCIC,30/04/2013,Legal / Prof Fees,NHS Choices,CAPITA BUSINESS SERVICES LTD,92962819," 56,451 ",Legal / Prof Fees
Department of Health,HSCIC,20/11/2013,IT Additions,Capital Expenditure,PROBRAND LTD,OPI452132," 56,360 ",IT Additions
Department of Health,HSCIC,27/09/2013,Legal / Prof Fees,Legal Fees,DLA PIPER UK LLP,57308182," 56,106 ",Legal / Prof Fees
Department of Health,HSCIC,30/09/2013,Computer Software/License,Corporate IT,SOFTCAT LTD,INV00837213," 56,058 ",Computer Software/License
Department of Health,HSCIC,30/05/2013,Legal / Prof Fees,Legal Fees,DLA PIPER UK LLP,57285267," 55,930 ",Legal / Prof Fees
Department of Health,HSCIC,29/11/2013,IT Maintenance,Corporate IT,PROBRAND LTD,OPI453512," 55,221 ",IT Maintenance
Department of Health,HSCIC,04/09/2013,Audit Services,Finance & Commercial Central Office,NATIONAL AUDIT OFFICE,4664," 55,020 ",Audit Services
Department of Health,HSCIC,08/11/2013,Computer Software/License,Technical Architecture,GS1 UK,14005449," 55,000 ",Computer Software/License
Department of Health,HSCIC,30/05/2013,Legal / Prof Fees,Legal Fees,DLA PIPER UK LLP,57284498," 54,707 ",Legal / Prof Fees
Department of Health,HSCIC,09/12/2013,Legal / Prof Fees,Indicator Portal,ATCHAI LTD,I000049," 54,600 ",Legal / Prof Fees
Department of Health,HSCIC,01/08/2013,Data Lines,Corporate IT,VODAFONE CORPORATE LTD,UK10082013490," 54,523 ",Data Lines
Department of Health,HSCIC,27/03/2013,Computer Hardware Purch,Corporate IT,INSIGHT DIRECT (UK) LTD,1264789," 54,099 ",Computer Hardware Purch
Department of Health,HSCIC,31/01/2014,Computer Software/License,HSCDS (NHS Choices Managed Services),HITWISE PTY LTD,5.0515E+11," 53,971 ",Computer Software/License
Department of Health,HSCIC,13/03/2014,Rent,Bus Supp - Est + Fac,NHS PROPERTY SERVICES LTD,48320449," 53,422 ",Rent
Department of Health,HSCIC,30/07/2013,Legal / Prof Fees,Legal Fees,DLA PIPER UK LLP,57307045," 53,120 ",Legal / Prof Fees
Department of Health,HSCIC,01/01/2014,Data Lines,Corporate IT,VODAFONE CORPORATE LTD,UK100120142470," 52,676 ",Data Lines
Department of Health,HSCIC,24/06/2013,Audit Services,Finance & Commercial Central Office,PRICEWATERHOUSECOOPERS LLP,1354033622," 52,458 ",Audit Services
Department of Health,HSCIC,10/04/2013,Consultancy,ISB,RULLION IT PLUS LTD,0527714," 52,381 ",Consultancy
Department of Health,HSCIC,27/06/2013,Legal / Prof Fees,Commercial Management,DELOITTE LLP,1110945409," 52,181 ",Legal / Prof Fees
Department of Health,HSCIC,03/09/2013,Computer software/hardware,CSC LSP Programme,GARTNER UK LTD,20075303," 52,066 ",Computer software/hardware
Department of Health,HSCIC,20/11/2013,Legal / Prof Fees,"Surveys, lifestyle & public health",NATIONAL CENTRE FOR SOCIAL RESEARCH,50863," 52,060 ",Legal / Prof Fees
Department of Health,HSCIC,28/01/2014,Computer Software/License,GPES,MICROTEST LTD,82000," 51,872 ",Computer Software/License
Department of Health,HSCIC,20/11/2013,IT Maintenance,CHRIS Service Management,IDENTITY & PASSPORT SERVICE,IPSGR0000304," 51,732 ",IT Maintenance
Department of Health,HSCIC,31/10/2013,IT Maintenance,Corporate IT,PROBRAND LTD,OPI449947," 51,368 ",IT Maintenance
Department of Health,HSCIC,29/05/2013,Consultancy,Commercial Management,DELOITTE LLP,1110934716," 51,283 ",Consultancy
Department of Health,HSCIC,31/07/2013,IT Maintenance,Corporate IT,PROBRAND LTD,OPI440003," 50,133 ",IT Maintenance
Department of Health,HSCIC,11/12/2013,Legal / Prof Fees,"Surveys, lifestyle & public health",NATIONAL CENTRE FOR SOCIAL RESEARCH,50906," 50,000 ",Legal / Prof Fees
Department of Health,HSCIC,20/03/2014,Legal / Prof Fees,"Surveys, lifestyle & public health",NATIONAL CENTRE FOR SOCIAL RESEARCH,51130," 50,000 ",Legal / Prof Fees
Department of Health,HSCIC,15/05/2013,Surveys/Audits/Data,"Surveys, lifestyle & public health",NATIONAL CENTRE FOR SOCIAL RESEARCH,50555," 50,000 ",Surveys/Audits/Data
Department of Health,HSCIC,23/07/2013,Surveys/Audits/Data,"Surveys, lifestyle & public health",NATIONAL CENTRE FOR SOCIAL RESEARCH,50708," 50,000 ",Surveys/Audits/Data
Department of Health,HSCIC,19/08/2013,Surveys/Audits/Data,"Surveys, lifestyle & public health",NATIONAL CENTRE FOR SOCIAL RESEARCH,50735," 50,000 ",Surveys/Audits/Data
Department of Health,HSCIC,28/11/2013,Course Fees,Central Training,QA LTD,ISL118128," 50,000 ",Course Fees
Department of Health,HSCIC,31/03/2013,Consultancy,CHRIS Service Management,SOFTWARE AG (UK) LTD,1109003610," 50,000 ",Consultancy
Department of Health,HSCIC,28/07/2013,Consultancy,CHRIS Service Management,SOFTWARE AG (UK) LTD,1109004018," 50,000 ",Consultancy
Department of Health,HSCIC,29/11/2013,Legal / Prof Fees,"Surveys, lifestyle & public health",NATIONAL CENTRE FOR SOCIAL RESEARCH,50896," 49,941 ",Legal / Prof Fees
Department of Health,HSCIC,22/03/2013,Computer Software/License,Corporate IT,COMPUTACENTER UK LTD,3350055509," 49,924 ",Computer Software/License
Department of Health,HSCIC,19/06/2013,Surveys/Audits/Data,"Surveys, lifestyle & public health",UNIVERSITY OF NOTTINGHAM,7682722," 49,615 ",Surveys/Audits/Data
Department of Health,HSCIC,01/11/2012,Legal / Prof Fees,Central services,NHS SHARED BUSINESS SERVICES LTD,100014951," 49,565 ",Legal / Prof Fees
Department of Health,HSCIC,21/03/2014,Computer Software/License,Capital Expenditure,TRUSTMARQUE SOLUTIONS LTD,2209158," 49,022 ",Computer Software/License
Department of Health,HSCIC,28/03/2013,Consultancy,Interoperability,HEATHERWOOD & WEXHAM PARK HOSPITALS NHS FOUNDATION TRUST,2020837," 49,000 ",Consultancy
Department of Health,HSCIC,29/10/2013,Secndd staff frm othr org,Media & corporate relations,DEPARTMENT OF HEALTH,209933," 48,943 ",Secndd staff frm othr org
Department of Health,HSCIC,13/01/2014,Legal / Prof Fees,Legal Fees,DLA PIPER UK LLP,57304972," 48,934 ",Legal / Prof Fees
Department of Health,HSCIC,19/04/2013,Audit Services,Finance & Commercial Central Office,PRICEWATERHOUSECOOPERS LLP,1353994673," 48,923 ",Audit Services
Department of Health,HSCIC,03/04/2013,Surveys/Audits/Data,Clinical audit,DIABETES UK,27797," 48,791 ",Surveys/Audits/Data
Department of Health,HSCIC,27/03/2013,Printing Costs,Public Engagement,DST OUTPUT (NOTTINGHAM) LTD,180443," 48,331 ",Printing Costs
Department of Health,HSCIC,07/11/2013,Legal / Prof Fees,Legal Fees,DLA PIPER UK LLP,57308982," 48,249 ",Legal / Prof Fees
Department of Health,HSCIC,20/11/2013,Computer Hardware Purch,IT Operations,COMPUTACENTER UK LTD,3805224562," 48,000 ",Computer Hardware Purch
Department of Health,HSCIC,30/04/2013,Legal / Prof Fees,Legal Fees,DLA PIPER UK LLP,57284714," 47,980 ",Legal / Prof Fees
Department of Health,HSCIC,10/02/2014,Legal / Prof Fees,Legal Fees,ERNST & YOUNG LLP,GB10100061597," 47,972 ",Legal / Prof Fees
Department of Health,HSCIC,29/07/2013,Legal / Prof Fees,Board costs,ATOS CONSULTING LTD,5265004734," 47,949 ",Legal / Prof Fees
Department of Health,HSCIC,02/08/2013,Computer software/hardware,GPES,ATOS IT SERVICES UK LTD,5584137189," 47,917 ",Computer software/hardware
Department of Health,HSCIC,05/03/2014,Legal / Prof Fees,Legal Fees,ERNST & YOUNG LLP,GB10100062879," 47,682 ",Legal / Prof Fees
Department of Health,HSCIC,30/01/2014,Legal / Prof Fees,Clinical audit,INSIGHT DIRECT (UK) LTD,1683931," 47,552 ",Legal / Prof Fees
Department of Health,HSCIC,30/09/2013,Surveys/Audits/Data,Workforce & facilities,HM REVENUE & CUSTOMS,18000018412013," 47,400 ",Surveys/Audits/Data
Department of Health,HSCIC,29/05/2013,Legal / Prof Fees,Commercial Management,DELOITTE LLP,1110934716," 47,083 ",Legal / Prof Fees
Department of Health,HSCIC,21/11/2013,Data Lines,IT Operations,COMPUTACENTER UK LTD,3805229110," 46,592 ",Data Lines
Department of Health,HSCIC,26/03/2014,IT Additions,Capital Expenditure,CSA (WAVERLEY ) LTD,IN658997," 46,548 ",IT Additions
Department of Health,HSCIC,16/10/2013,Legal / Prof Fees,Legal Fees,DLA PIPER UK LLP,57308341," 46,438 ",Legal / Prof Fees
Department of Health,HSCIC,07/01/2014,Computer Software/License,Capital Expenditure,TRUSTMARQUE SOLUTIONS LTD,2204110," 46,354 ",Computer Software/License
Department of Health,HSCIC,02/01/2014,Computer Software/License,Capital Expenditure,HOME OFFICE,1117623," 46,125 ",Computer Software/License
Department of Health,HSCIC,29/03/2013,IT Maintenance,Corporate IT,COMPUTACENTER UK LTD,3804609075," 44,956 ",IT Maintenance
Department of Health,HSCIC,31/05/2013,Legal / Prof Fees,IC Projects,BJSS LTD,10248," 44,787 ",Legal / Prof Fees
Department of Health,HSCIC,06/06/2013,Rent,Bus Supp - Est + Fac,DTZ DEBENHAM TIE LEUNG,43394," 44,333 ",Rent
Department of Health,HSCIC,04/11/2013,IT Additions,Capital Expenditure,INSIGHT DIRECT (UK) LTD,1567678," 44,191 ",IT Additions
Department of Health,HSCIC,03/09/2013,Training Expenses,IT Skills Development Programme,UNIVERSITY HOSPITALS OF MORECAMBE BAY NHS FOUNDATION TRUST,232335," 44,000 ",Training Expenses
Department of Health,HSCIC,13/12/2013,IT Additions,Capital Expenditure,CSA (WAVERLEY ) LTD,IN658526," 43,922 ",IT Additions
Department of Health,HSCIC,28/02/2014,Computer Software/License,Capital Expenditure,SPECIALIST COMPUTER CENTRES PLC,OPL812723," 43,645 ",Computer Software/License
Department of Health,HSCIC,26/03/2014,IT Additions,Capital Expenditure,CSA (WAVERLEY ) LTD,IN658995," 43,428 ",IT Additions
Department of Health,HSCIC,27/11/2013,Rent,Bus Supp - Est + Fac,DTZ DEBENHAM TIE LEUNG,679925," 43,157 ",Rent
Department of Health,HSCIC,31/05/2013,IT Maintenance,Corporate IT,PROBRAND LTD,OPI432642," 42,868 ",IT Maintenance
Department of Health,HSCIC,31/01/2014,IT Maintenance,Workforce & facilities,ASCKEY DATA SERVICES LTD,4496," 42,797 ",IT Maintenance
Department of Health,HSCIC,08/05/2013,Rent,Bus Supp - Est + Fac,DTZ DEBENHAM TIE LEUNG,654726," 42,572 ",Rent
Department of Health,HSCIC,31/05/2013,Legal / Prof Fees,NHS Choices,CAPITA BUSINESS SERVICES LTD,93009818," 42,106 ",Legal / Prof Fees
Department of Health,HSCIC,25/03/2014,IT Additions,Capital Expenditure,CSA (WAVERLEY ) LTD,IN658992," 42,023 ",IT Additions
Department of Health,HSCIC,30/04/2013,Consultancy,Finance & Commercial Central Office,KPMG LLP,5500684580," 41,429 ",Consultancy
Department of Health,HSCIC,28/06/2013,Legal / Prof Fees,Legal Fees,DLA PIPER UK LLP,57302533," 41,236 ",Legal / Prof Fees
Department of Health,HSCIC,24/01/2014,Computer Software/License,Hosting & Infrastructure,SOFTCAT LTD,INV00889376," 40,920 ",Computer Software/License
Department of Health,HSCIC,03/07/2013,Surveys/Audits/Data,Clinical audit,DIABETES UK,28274," 40,659 ",Surveys/Audits/Data
Department of Health,HSCIC,01/09/2013,Rent,Bus Supp - Est + Fac,DTZ DEBENHAM TIE LEUNG,669567," 40,352 ",Rent
Department of Health,HSCIC,09/07/2013,Computer Software/License,Capital Expenditure,TRUSTMARQUE SOLUTIONS LTD,2195009," 40,164 ",Computer Software/License
Department of Health,HSCIC,11/02/2014,Legal / Prof Fees,Professional and Clinical Information Standards,ROYAL COLLEGE OF PHYSICIANS,INV013366," 40,000 ",Legal / Prof Fees
Department of Health,HSCIC,24/06/2013,Training Expenses,Central Training,QA LTD,ISL115332," 40,000 ",Training Expenses
Department of Health,HSCIC,23/09/2013,Surveys/Audits/Data,Clinical audit,DIABETES UK,28462," 39,958 ",Surveys/Audits/Data
Department of Health,HSCIC,09/12/2013,Surveys/Audits/Data,Clinical audit,DIABETES UK,29211," 39,958 ",Surveys/Audits/Data
Department of Health,HSCIC,27/02/2014,Rent,Bus Supp - Est + Fac,DEPARTMENT OF HEALTH,210526," 39,826 ",Rent
Department of Health,HSCIC,27/02/2014,Rent,Bus Supp - Est + Fac,DEPARTMENT OF HEALTH,210531," 39,826 ",Rent
Department of Health,HSCIC,29/11/2013,IT Additions,Casemix Programme,3M HEALTH CARE LTD,935451," 39,494 ",IT Additions
Department of Health,HSCIC,21/11/2013,Rent,Bus Supp - Est + Fac,KNIGHT FRANK LLP,116952," 39,218 ",Rent
Department of Health,HSCIC,28/06/2013,Legal / Prof Fees,Legal Fees,DLA PIPER UK LLP,57302730," 38,963 ",Legal / Prof Fees
Department of Health,HSCIC,21/03/2014,Rent,Bus Supp - Est + Fac,NHS PROPERTY SERVICES LTD,48323347," 38,464 ",Rent
Department of Health,HSCIC,10/02/2014,Computer Software/License,Capital Expenditure,TRUSTMARQUE SOLUTIONS LTD,2206109," 38,357 ",Computer Software/License
Department of Health,HSCIC,13/08/2013,Computer Hardware Purch,Capital Expenditure,PROBRAND LTD,OPI441173," 38,310 ",Computer Hardware Purch
Department of Health,HSCIC,27/06/2013,Computer Software/License,ODS Team,TOMORROWS GUIDES LTD,25793," 38,000 ",Computer Software/License
Department of Health,HSCIC,30/06/2013,Computer Software/License,HES Migration,BJSS LTD,10352," 37,271 ",Computer Software/License
Department of Health,HSCIC,25/02/2014,Computer Software/License,Capital Expenditure,TRUSTMARQUE SOLUTIONS LTD,2207161," 37,170 ",Computer Software/License
Department of Health,HSCIC,28/03/2013,Legal / Prof Fees,Bus Supp - Est + Fac,CAPITA BUSINESS SERVICES LTD,92918401," 37,147 ",Legal / Prof Fees
Department of Health,HSCIC,26/03/2013,Consultancy,Bus Supp - Est + Fac,KINGS COLLEGE HOSPITAL NHS FOUNDATION TRUST,00175469," 37,000 ",Consultancy
Department of Health,HSCIC,19/03/2013,Computer Software/License,Bus Supp - Est + Fac,ORACLE CORPORATION UK LTD,1401079," 36,740 ",Computer Software/License
Department of Health,HSCIC,29/11/2013,Consultancy,Bus Supp - Est + Fac,UNIVERSITY OF NOTTINGHAM,7688513," 36,705 ",Consultancy
Department of Health,HSCIC,17/02/2014,IT Additions,Capital Expenditure,PROBRAND LTD,OPI462094," 36,627 ",IT Additions
Department of Health,HSCIC,07/03/2014,IT Maintenance,Bus Supp - Est + Fac,CSA (WAVERLEY ) LTD,IN658876," 36,593 ",IT Maintenance
Department of Health,HSCIC,13/11/2013,Computer Software/License,Bus Supp - Est + Fac,OFFICE FOR NATIONAL STATISTICS,1027304," 36,500 ",Computer Software/License
Department of Health,HSCIC,03/10/2013,Computer Software/License,Capital Expenditure,SPECIALIST COMPUTER CENTRES PLC,OPL732399," 36,390 ",Computer Software/License
Department of Health,HSCIC,29/01/2014,Legal / Prof Fees,Legal Fees,DLA PIPER UK LLP,SLKJC71754120099UKMJC71754120099," 36,368 ",Legal / Prof Fees
Department of Health,HSCIC,11/12/2013,External Data Contracts,HSCDS (NHS Choices Managed Services),CAPITA BUSINESS SERVICES LTD,93326017," 36,331 ",External Data Contracts
Department of Health,HSCIC,01/01/2014,Data Lines,Corporate IT,VODAFONE CORPORATE LTD,UK100120142467," 36,059 ",Data Lines
Department of Health,HSCIC,19/02/2014,Audit Services,Finance & Commercial Central Office,NATIONAL AUDIT OFFICE,34802," 36,000 ",Audit Services
Department of Health,HSCIC,08/04/2013,Consultancy,Interoperability,ROYAL BERKSHIRE NHS FOUNDATION  TRUST,451051," 36,000 ",Consultancy
Department of Health,HSCIC,22/11/2013,IT Additions,Capital Expenditure,COMPUTACENTER UK LTD,3805232677," 35,911 ",IT Additions
Department of Health,HSCIC,27/03/2013,Professional services,PROMS,MOUCHEL MANAGEMENT CONSULTING LTD,90130662," 35,910 ",Professional services
Department of Health,HSCIC,31/07/2013,Computer Software/License,Corporate IT,SOFTCAT LTD,INV00813409," 35,745 ",Computer Software/License
Department of Health,HSCIC,25/09/2013,Computer Software/License,HES Migration,BJSS LTD,10647," 35,609 ",Computer Software/License
Department of Health,HSCIC,15/05/2013,Legal / Prof Fees,Clinical audit,ROYAL COLLEGE OF PHYSICIANS,INV011712," 35,496 ",Legal / Prof Fees
Department of Health,HSCIC,25/02/2014,Rent,Bus Supp - Est + Fac,MWB BUSINESS EXCHANGE CENTRES LTD,235535," 35,390 ",Rent
Department of Health,HSCIC,03/10/2013,Computer Software/License,Corporate IT,COMPUTACENTER UK LTD,3700809688," 35,152 ",Computer Software/License
Department of Health,HSCIC,10/03/2014,IT Maintenance,Corporate IT,COMPUTACENTER UK LTD,3780002461," 35,152 ",IT Maintenance
Department of Health,HSCIC,05/09/2013,IT Maintenance,Corporate IT,COMPUTACENTER UK LTD,3700804472," 35,152 ",IT Maintenance
Department of Health,HSCIC,12/09/2013,IT Additions,Capital Expenditure,3M HEALTH CARE LTD,912035," 35,062 ",IT Additions
Department of Health,HSCIC,20/11/2013,IT Maintenance,IC Projects,NORTHGATE INFORMATION SOLUTIONS UK LTD,91289128," 35,034 ",IT Maintenance
Department of Health,HSCIC,31/12/2013,IT Maintenance,IC Projects,NORTHGATE INFORMATION SOLUTIONS UK LTD,91292616," 35,034 ",IT Maintenance
Department of Health,HSCIC,30/04/2013,IT Maintenance,SUS/HES analysis,NORTHGATE INFORMATION SOLUTIONS UK LTD,91261312," 35,034 ",IT Maintenance
Department of Health,HSCIC,31/05/2013,IT Maintenance,Clinical indicators,NORTHGATE INFORMATION SOLUTIONS UK LTD,91265921," 35,034 ",IT Maintenance
Department of Health,HSCIC,30/06/2013,IT Maintenance,IC Projects,NORTHGATE INFORMATION SOLUTIONS UK LTD,91270295," 35,034 ",IT Maintenance
Department of Health,HSCIC,31/07/2013,IT Maintenance,IC Projects,NORTHGATE INFORMATION SOLUTIONS UK LTD,91274416," 35,034 ",IT Maintenance
Department of Health,HSCIC,31/08/2013,IT Maintenance,IC Projects,NORTHGATE INFORMATION SOLUTIONS UK LTD,91278547," 35,034 ",IT Maintenance
Department of Health,HSCIC,30/09/2013,IT Maintenance,IC Projects,NORTHGATE INFORMATION SOLUTIONS UK LTD,91282474," 35,034 ",IT Maintenance
Department of Health,HSCIC,30/10/2013,IT Maintenance,IC Projects,NORTHGATE INFORMATION SOLUTIONS UK LTD,91287220," 35,034 ",IT Maintenance
Department of Health,HSCIC,19/01/2014,Rent,Bus Supp - Est + Fac,MWB BUSINESS EXCHANGE CENTRES LTD,2354266," 35,016 ",Rent
Department of Health,HSCIC,24/01/2014,Rent,Bus Supp - Est + Fac,REGUS (UK) LTD,2354270," 35,016 ",Rent
Department of Health,HSCIC,03/03/2014,Rates,Bus Supp - Est + Fac,LEEDS CITY COUNCIL,9.00938E+19," 34,704 ",Rates
Department of Health,HSCIC,04/03/2014,Surveys/Audits/Data,"Surveys, lifestyle & public health",MARKET & OPINION RESEARCH INTERNATIONAL LTD,14000431," 34,600 ",Surveys/Audits/Data
Department of Health,HSCIC,02/12/2013,Rent,Bus Supp - Est + Fac,PETIT PAPILLON MANAGEMENT LTD,9090," 34,396 ",Rent
Department of Health,HSCIC,03/03/2014,Rent,Bus Supp - Est + Fac,PETIT PAPILLON MANAGEMENT LTD,9377," 34,396 ",Rent
Department of Health,HSCIC,29/01/2014,Legal / Prof Fees,Indicator Portal,ATCHAI LTD,I000061," 34,291 ",Legal / Prof Fees
Department of Health,HSCIC,31/01/2014,IT Maintenance,Corporate IT,PROBRAND LTD,OPI460091," 34,190 ",IT Maintenance
Department of Health,HSCIC,03/06/2013,Rent,Bus Supp - Est + Fac,PETIT PAPILLON MANAGEMENT LTD,8647," 34,055 ",Rent
Department of Health,HSCIC,07/02/2014,Rates,Bus Supp - Est + Fac,DEPARTMENT OF HEALTH,210530," 33,768 ",Rates
Department of Health,HSCIC,18/03/2014,Rates,Bus Supp - Est + Fac,DEPARTMENT OF HEALTH,210699," 33,574 ",Rates
Department of Health,HSCIC,20/12/2013,Legal / Prof Fees,Indicator Portal,ATCHAI LTD,I000053," 33,550 ",Legal / Prof Fees
Department of Health,HSCIC,27/02/2014,Rates,Bus Supp - Est + Fac,DEPARTMENT OF HEALTH,210525," 33,466 ",Rates
Department of Health,HSCIC,22/03/2013,Computer Software/License,SPINE 2 Tech Office,SPLUNK,33242," 33,289 ",Computer Software/License
Department of Health,HSCIC,04/03/2014,IT Additions,Capital Expenditure,COMPUTACENTER UK LTD,3880056969," 33,247 ",IT Additions
Department of Health,HSCIC,18/02/2014,Legal / Prof Fees,Indicator Portal,ATCHAI LTD,I000063," 32,642 ",Legal / Prof Fees
Department of Health,HSCIC,26/03/2013,Computer Hardware Purch,Capital Expenditure,HM LAND REGISTRY,1116946," 32,622 ",Computer Hardware Purch
Department of Health,HSCIC,28/02/2014,IT Maintenance,Corporate IT,PROBRAND LTD,OPI463756," 32,540 ",IT Maintenance
Department of Health,HSCIC,27/08/2013,Surveys/Audits/Data,"Surveys, lifestyle & public health",UNIVERSITY OF NOTTINGHAM,7685171," 32,234 ",Surveys/Audits/Data
Department of Health,HSCIC,17/12/2012,Computer Software/License,GPES,PHOENIX PARTNERSHIP (LEEDS) LTD,3652," 32,145 ",Computer Software/License
Department of Health,HSCIC,24/07/2013,Legal / Prof Fees,Primary care strategy,ATOS CONSULTING LTD,5265004725," 32,071 ",Legal / Prof Fees
Department of Health,HSCIC,27/11/2013,Consultancy,Primary care strategy,ATOS ORIGIN IT SERVICES UK LTD,5265004891," 32,012 ",Consultancy
Department of Health,HSCIC,02/05/2013,Consultancy,Interoperability,NORTH EAST LONDON NHS FOUNDATION TRUST,NL0000019479," 32,000 ",Consultancy
Department of Health,HSCIC,31/03/2013,Contractor,Corporate IT,SAND RESOURCES LTD,SAND47298," 31,590 ",Contractor
Department of Health,HSCIC,27/06/2013,Legal / Prof Fees,Legal Fees,DLA PIPER UK LLP,JC71754120099UKM511486521," 31,493 ",Legal / Prof Fees
Department of Health,HSCIC,07/01/2014,Computer Software/License,Capital Expenditure,TRUSTMARQUE SOLUTIONS LTD,2204109," 31,449 ",Computer Software/License
Department of Health,HSCIC,01/04/2013,IT Maintenance,IC Projects,NORTHGATE INFORMATION SOLUTIONS UK LTD,91257107," 31,407 ",IT Maintenance
Department of Health,HSCIC,08/08/2013,Computer Software/License,Capital Expenditure,COMPUTACENTER UK LTD,3804928145," 31,353 ",Computer Software/License
Department of Health,HSCIC,25/03/2013,Computer Software/License,Corporate IT,NOVELL UK LTD,44132108," 31,319 ",Computer Software/License
Department of Health,HSCIC,13/11/2013,IT Maintenance,Corporate IT,COMPUTACENTER UK LTD,3700816352," 31,119 ",IT Maintenance
Department of Health,HSCIC,04/12/2013,IT Maintenance,Corporate IT,COMPUTACENTER UK LTD,3700821265," 31,119 ",IT Maintenance
Department of Health,HSCIC,27/01/2014,IT Maintenance,Corporate IT,COMPUTACENTER UK LTD,3780000222," 31,119 ",IT Maintenance
Department of Health,HSCIC,07/02/2014,IT Maintenance,Corporate IT,COMPUTACENTER UK LTD,3780001086," 31,119 ",IT Maintenance
Department of Health,HSCIC,20/06/2013,Consultancy,Finance & Commercial Central Office,UNIVERSITY HOSPITAL BIRMINGHAM NHS FOUNDATION TRUST,OPP008334," 30,925 ",Consultancy
Department of Health,HSCIC,07/03/2014,Legal / Prof Fees,Indicator Portal,ATCHAI LTD,I000066," 30,455 ",Legal / Prof Fees
Department of Health,HSCIC,10/02/2014,Computer Software/License,Capital Expenditure,TRUSTMARQUE SOLUTIONS LTD,2206109," 30,120 ",Computer Software/License
Department of Health,HSCIC,31/01/2014,Legal / Prof Fees,Data Services for Commissioners,PRICEWATERHOUSECOOPERS LLP,1354118459," 30,043 ",Legal / Prof Fees
Department of Health,HSCIC,01/07/2013,Data Lines,Corporate IT,VODAFONE CORPORATE LTD,UK100720136084," 30,032 ",Data Lines
Department of Health,HSCIC,22/11/2013,Surveys/Audits/Data,Interoperability,EAST KENT HOSPITALS UNIVERSITY NHS FOUNDATION TRUST,496730," 30,000 ",Surveys/Audits/Data
Department of Health,HSCIC,26/03/2013,Consultancy,Interoperability,KINGS COLLEGE HOSPITAL NHS FOUNDATION TRUST,00175470," 30,000 ",Consultancy
Department of Health,HSCIC,15/10/2013,Surveys/Audits/Data,"Surveys, lifestyle & public health",NATIONAL CENTRE FOR SOCIAL RESEARCH,50813," 30,000 ",Surveys/Audits/Data
Department of Health,HSCIC,01/04/2013,Consultancy,Interoperability,NORTHERN LINCOLNSHIRE & GOOLE HOSPITALS NHS FOUNDATION TRUST,2400000890," 30,000 ",Consultancy
Department of Health,HSCIC,08/11/2013,Course Fees,Central Training,QA LTD,ISL117696," 30,000 ",Course Fees
Department of Health,HSCIC,07/02/2014,Training Expenses,Central Training,QA LTD,ISL119490," 30,000 ",Training Expenses
Department of Health,HSCIC,03/07/2013,Computer Software/License,IT Development,SMARTLOGIC SEMAPHORE LTD,13NHSIC1812," 29,760 ",Computer Software/License
Department of Health,HSCIC,01/05/2013,Consultancy,IT Supply + Contract Mgt,ERNST & YOUNG LLP,GB10100048139," 29,715 ",Consultancy
Department of Health,HSCIC,02/04/2013,Computer Hardware Purch,Corporate IT,COMPUTACENTER UK LTD,3700777933," 29,400 ",Computer Hardware Purch
Department of Health,HSCIC,03/05/2013,Computer Hardware Purch,Corporate IT,COMPUTACENTER UK LTD,3700783207," 29,400 ",Computer Hardware Purch
Department of Health,HSCIC,03/06/2013,Computer Hardware Purch,Corporate IT,COMPUTACENTER UK LTD,3700787584," 29,400 ",Computer Hardware Purch
Department of Health,HSCIC,28/01/2014,Contr Photocopier Rental,Bus Supp - Est + Fac,RICOH UK LTD,87745736," 29,386 ",Contr Photocopier Rental
Department of Health,HSCIC,28/10/2013,Contr Photocopier Rental,Bus Supp - Est + Fac,RICOH UK LTD,87642129," 29,146 ",Contr Photocopier Rental
Department of Health,HSCIC,28/03/2013,Computer Hardware Purch,Capital Expenditure,PROBRAND LTD,OPI425680," 28,911 ",Computer Hardware Purch
Department of Health,HSCIC,27/01/2014,IT Maintenance,IC Projects,NORTHGATE INFORMATION SOLUTIONS UK LTD,91294218," 28,798 ",IT Maintenance
Department of Health,HSCIC,30/01/2014,IT Maintenance,IC Projects,NORTHGATE INFORMATION SOLUTIONS UK LTD,91294957," 28,798 ",IT Maintenance
Department of Health,HSCIC,19/02/2014,Surveys/Audits/Data,Marketing & communications,PUBLIC HEALTH ENGLAND,6058763," 28,580 ",Surveys/Audits/Data
Department of Health,HSCIC,28/02/2014,Data Lines,IT Operations,COMPUTACENTER UK LTD,3880054178," 28,200 ",Data Lines
Department of Health,HSCIC,27/02/2013,Secndd staff frm othr org,Clinical office,BARTS HEALTH NHS TRUST,157674," 28,186 ",Secndd staff frm othr org
Department of Health,HSCIC,23/12/2013,Rent,Bus Supp - Est + Fac,EAGLE ONE LTD,10471," 28,133 ",Rent
Department of Health,HSCIC,28/02/2014,Rent,Bus Supp - Est + Fac,EAGLE ONE LTD,10482," 28,133 ",Rent
Department of Health,HSCIC,26/07/2013,Data Lines,Corporate IT,BT PLC,VP26983270108101," 28,038 ",Data Lines
Department of Health,HSCIC,01/03/2014,IT Maintenance,Workforce & facilities,ASCKEY DATA SERVICES LTD,4563," 27,986 ",IT Maintenance
Department of Health,HSCIC,24/06/2013,Training Expenses,IT Skills Development Programme,QA LTD,ISL115331," 27,837 ",Training Expenses
Department of Health,HSCIC,20/03/2013,Mobile Phones,Bus Supp - Est + Fac,VODAFONE CORPORATE LTD,66949582," 27,663 ",Mobile Phones
Department of Health,HSCIC,14/11/2013,Secndd staff frm othr org,Clinical office,SANDWELL AND WEST BIRMINGHAM HOSPITALS NHS TRUST,SSINV3781," 27,472 ",Secndd staff frm othr org
Department of Health,HSCIC,22/10/2013,Legal / Prof Fees,Legal Fees,MILBANK TWEED HADLEY & MCCLOY LLP,LEO107880," 27,356 ",Legal / Prof Fees
Department of Health,HSCIC,22/03/2013,Secndd staff frm othr org,External Resources,DEPARTMENT FOR WORK AND PENSIONS,2910289," 27,148 ",Secndd staff frm othr org
Department of Health,HSCIC,10/04/2013,Legal / Prof Fees,Finance & Commercial Central Office,NHS BUSINESS SERVICES AUTHORITY,0000006580," 27,000 ",Legal / Prof Fees
Department of Health,HSCIC,30/11/2013,IT Maintenance,Corporate IT,COMPUTACENTER UK LTD,3700819944," 26,958 ",IT Maintenance
Department of Health,HSCIC,13/06/2013,Legal / Prof Fees,NHS Choices,CAPITA BUSINESS SERVICES LTD,93026549," 26,863 ",Legal / Prof Fees
Department of Health,HSCIC,15/03/2013,Secndd staff frm othr org,Knowledge Management and Collaboration,NHS SOUTH CENTRAL,19733260," 26,853 ",Secndd staff frm othr org
Department of Health,HSCIC,24/07/2013,Rates,Bus Supp - Est + Fac,DEPARTMENT OF HEALTH,209662," 26,629 ",Rates
Department of Health,HSCIC,17/01/2014,Surveys/Audits/Data,"Surveys, lifestyle & public health",NATIONAL CENTRE FOR SOCIAL RESEARCH,50995," 26,600 ",Surveys/Audits/Data
Department of Health,HSCIC,18/09/2013,Surveys/Audits/Data,"Surveys, lifestyle & public health",NATIONAL CENTRE FOR SOCIAL RESEARCH,50780," 26,590 ",Surveys/Audits/Data
Department of Health,HSCIC,28/06/2013,IT Maintenance,Corporate IT,PROBRAND LTD,OPI436061," 26,518 ",IT Maintenance
Department of Health,HSCIC,13/02/2014,Computer Software/License,Business Services Management,SPECIALIST COMPUTER CENTRES PLC,OPL803158," 26,438 ",Computer Software/License
Department of Health,HSCIC,02/10/2013,IT Maintenance,Marketing & communications,BRAMBLE.CC LTD,3280," 26,342 ",IT Maintenance
Department of Health,HSCIC,14/05/2013,Computer Hardware Purch,Capital Expenditure,PROBRAND LTD,OPI430476," 26,264 ",Computer Hardware Purch
Department of Health,HSCIC,31/01/2014,IT Additions,Capital Expenditure,COMPUTACENTER UK LTD,3880020328," 26,076 ",IT Additions
Department of Health,HSCIC,16/01/2014,Computer Software/License,Corporate IT,SPECIALIST COMPUTER CENTRES PLC,OPL786899," 26,073 ",Computer Software/License
Department of Health,HSCIC,28/02/2014,Computer Software/License,GPES,MICROTEST LTD,82510," 25,936 ",Computer Software/License
Department of Health,HSCIC,15/01/2014,Secndd staff frm othr org,Media & corporate relations,DEPARTMENT OF HEALTH,210209," 25,784 ",Secndd staff frm othr org
Department of Health,HSCIC,31/07/2013,Computer Software/License,Corporate IT,TRUSTMARQUE SOLUTIONS LTD,2196389," 25,704 ",Computer Software/License
Department of Health,HSCIC,19/03/2014,Rent,Bus Supp - Est + Fac,NHS PROPERTY SERVICES LTD,48322863," 25,518 ",Rent
Department of Health,HSCIC,30/09/2013,IT Maintenance,Corporate IT,PROBRAND LTD,OPI446074," 25,462 ",IT Maintenance
Department of Health,HSCIC,30/08/2013,Computer Software/License,Capital Expenditure,TRUSTMARQUE SOLUTIONS LTD,2197773," 25,344 ",Computer Software/License
Department of Health,HSCIC,06/01/2014,Computer Software/License,Solution Assurance,SILVERLINK SOFTWARE LTD,10695," 25,315 ",Computer Software/License
Department of Health,HSCIC,13/11/2013,Rent,Bus Supp - Est + Fac,SAVILLS (UK) LTD,D344712," 25,310 ",Rent
Department of Health,HSCIC,30/08/2013,Computer Software/License,Corporate IT,TRUSTMARQUE SOLUTIONS LTD,2197773," 25,056 ",Computer Software/License
Department of Health,HSCIC,04/07/2013,Agency Prof & Tech,Prescribing & primary care svcs,CEGEDIM STRATEGIC DATA MEDICAL RESEARCH LTD,400393," 25,000 ",Agency Prof & Tech
Department of Health,HSCIC,17/06/2013,Surveys/Audits/Data,"Surveys, lifestyle & public health",NATIONAL CENTRE FOR SOCIAL RESEARCH,50592," 25,000 ",Surveys/Audits/Data
Department of Health,HSCIC,19/08/2013,Surveys/Audits/Data,"Surveys, lifestyle & public health",NATIONAL CENTRE FOR SOCIAL RESEARCH,50734," 25,000 ",Surveys/Audits/Data
Department of Health,HSCIC,18/11/2013,Training Expenses,LSP Directorate Central Services,OXFORD SAID BUSINESS SCHOOL,35754," 25,000 ",Training Expenses
Department of Health,HSCIC,29/11/2013,Course Fees,SPINE 2 Tech Office,OXFORD SAID BUSINESS SCHOOL,35794," 25,000 ",Course Fees
Department of Health,HSCIC,30/08/2013,Training Expenses,Data Services for Commissioners,OXFORD SAID BUSINESS SCHOOL,0000035271," 25,000 ",Training Expenses
Department of Health,HSCIC,11/11/2013,Training Expenses,NHSmail 2,OXFORD SAID BUSINESS SCHOOL,0000035636," 2